Cogmind - Beta 16 @@@ ROGUE MODE // 2026.02.04 @ 15:58:54 Player: Auron Result: Destroyed self with Rocket Launcher Performance ------------- Evolutions (1) 500 Regions Visited (3) 600 Robots Destroyed (47) 235 Value Destroyed (981) 981 Prototype IDs (2) 40 Alien Tech Used (0) 0 Bonus (50) 50 TOTAL SCORE: 2406 Bonus ------- Follower Combat Kills 50 Cogmind --------- Core Integrity 0/400 Matter 183/300 Energy 100/100 System Corruption 0% Temperature Cool (2) Movement Core (800) Ox15 Location -9/Materials Parts ------- > --- POWER (1) -------- (None) > --- PROPULSION (3) --- (None) > --- UTILITY (3) ------ High-capacity Storage Unit > --- WEAPON (2) ------- Grenade Launcher Rocket Launcher > --- INVENTORY (20) --- Large Battery (200) Small Matter Pod (50) Faulty Experimental Sensor Array Weapon Shielding Light Assault Rifle Grenade Launcher Datajack Peak State ------------ > --- POWER ------------ Light Nuclear Core > --- PROPULSION ------- Wheel Wheel > --- UTILITY ---------- Improved Heat Sink High-capacity Storage Unit Medium Matter Pod > --- WEAPON ----------- Particle Gun Mining Laser > --- INVENTORY -------- Light Treads Large Battery Small Matter Pod Experimental Sensor Array Weapon Shielding Medium Laser Light Assault Rifle Grenade Launcher Grenade Launcher Rocket Launcher Datajack [Rating: 15] Favorites ----------- Power Light Ion Engine Engine Light Ion Engine Power Core Light Nuclear Core Propulsion Wheel Treads Light Treads Leg Aluminum Leg Wheel Wheel Flight Unit Flight Unit Utility Medium Matter Pod Device Improved Terrain Scanner Storage Medium Matter Pod Weapon Light Cannon Energy Gun Medium Laser Ballistic Gun Light Assault Rifle Ballistic Cannon Light Cannon Launcher Grenade Launcher Special Weapon Mining Laser Special Melee Weapon Datajack Build | -11 -10 -10 -9 ------- Run | Yrd Mat Min Mat Slots Evolved 2 | . . . 2 Power . | . . . . Propulsion 1 | . . . 1 Utility 1 | . . . 1 Weapon . | . . . . Parts Attached 29 | 7 11 7 4 Power 3 | 1 1 1 . Engine 2 | 1 1 . . Core 1 | . . 1 . Reactor . | . . . . Propulsion 10 | 2 4 3 1 Treads 1 | . . . 1 Leg 3 | . 3 . . Wheel 5 | 2 1 2 . Hover . | . . . . Flight 1 | . . 1 . Utility 5 | 2 2 . 1 Device 2 | 1 . . 1 Storage 3 | 1 2 . . Processor . | . . . . Hackware . | . . . . Protection . | . . . . Artifact . | . . . . Weapon 11 | 2 4 3 2 Energy Gun 2 | . . 1 1 Energy Cannon . | . . . . Ballistic Gun 2 | 2 . . . Ballistic Cannon 2 | . 2 . . Launcher 3 | . 2 . 1 Special Weapon 1 | . . 1 . Impact Weapon . | . . . . Slashing Weapon . | . . . . Piercing Weapon . | . . . . Special Melee Weapon 1 | . . 1 . Unidentified Prototypes . | . . . . Parts Lost 12 | . 2 2 8 Power 1 | . . . 1 Propulsion 3 | . 1 . 2 Utility 3 | . 1 . 2 Weapon 5 | . . 2 3 Highest Loss Streak 7 | . 1 1 7 To Critical Strikes . | . . . . Average Backups 7 | . 6 9 9 Power . | . . . . Propulsion . | . . . . Utility 3 | . 2 4 4 Weapon 3 | . 3 4 4 Tool/Special . | . . . . Unused Backups 8 | . 4 . 4 Power . | . . . . Propulsion . | . . . . Utility 6 | . 2 . 4 Weapon 2 | . 2 . . Tool/Special . | . . . . Average Slot Usage (%) 94 | . 97 96 70 Engine 10 | . 14 9 . Core 2 | . . 4 3 Leg 9 | . 15 5 . Wheel 15 | . 10 19 16 Device 3 | . 6 . 9 Storage 24 | . 20 28 20 Energy Gun 5 | . . 8 10 Ballistic Gun 1 | . 4 . . Ballistic Cannon 14 | . 18 13 . Launcher 1 | . 4 . 1 Special Weapon 1 | . . 1 8 Special Melee Weapon 1 | . . 2 . Peak Build Rating 15 | 9 9 11 15 Average Rating 8 | 7 7 8 10 On Entrance 6 | . 9 7 11 Avg Prop Armor Cover (%) 7 | . 7 7 9 Naked Turns . | . . . . Heaviest Build 52 | 13 51 51 52 Greatest Support 32 | 32 32 20 20 Greatest Overweight (x) 13 | 1 5 12 13 Average Overweight (x) 1 | . . 3 2 Largest Inventory Capacity 20 | 8 20 20 20 Average Capacity 15 | 7 11 20 20 Most Carried 12 | 2 9 12 11 Average Carried 7 | . 7 9 9 Final Capacity 20 | 8 20 20 20 Final Carried 11 | 2 8 11 7 Class Distribution -------------------- 84% | Mutant 15% | Scavenger-Mutant Dominant Class ---------------- Mutant | -10/Materials Mutant | -10/Mines Scavenger-Mutant | -9/Materials Resources | -11 -10 -10 -9 ----------- Run | Yrd Mat Min Mat Matter Collected 977 | 312 355 190 120 Remotely . | . . . . Salvage Created 998 | 147 478 249 124 Parts 70 | 10 28 18 14 Haulers Intercepted . | . . . . Recyclers Shooed 6 | . 1 1 4 Parts Field Recycled . | . . . . Retrieved Matter . | . . . . Parts Self-Destructed . | . . . . Prevented . | . . . . Parts Restored . | . . . . Kills | -11 -10 -10 -9 ------- Run | Yrd Mat Min Mat Combat Hostiles Destroyed 26 | . 13 7 6 Guns 5 | . 1 3 1 Cannons 13 | . 10 3 . AOE 8 | . 2 1 5 Classes Destroyed 10 | 3 5 . 2 Worker 7 | 1 3 2 1 Builder 1 | . 1 . . Tunneler 6 | 3 . 3 . Recycler 3 | 1 1 . 1 Mechanic 1 | . . . 1 Operator 1 | . 1 . . Watcher 2 | . 1 . 1 Swarmer 9 | . 3 3 3 Grunt 16 | . 10 4 2 Sentry 1 | . . . 1 Best Kill Streak 5 | 2 4 3 5 Combat Bots Only 3 | . 3 3 3 Max Kills in Single Turn 2 | 1 2 1 2 Gunslinging . | . . . . Exploded 2 | . 1 1 2 Melee . | . . . . Uniques/NPCs Destroyed . | . . . . Combat | -11 -10 -10 -9 -------- Run | Yrd Mat Min Mat Hostile Shots Fired 183 | . 69 47 67 Missed 52 | . 24 17 11 Hits 131 | . 45 30 56 Projectile 131 | . 45 30 56 Damage Taken 1698 | . 462 392 844 Core 602 | . 99 98 405 Absorbed by Shields . | . . . . Core Remaining (%) 60 | 100 . 21 . Volleys Fired 159 | 24 74 39 22 Largest 2 | 2 2 2 2 Hottest 165 | 40 60 100 165 Shots Fired 258 | 48 118 62 30 Gun 132 | 48 36 29 19 Cannon 107 | . 80 27 . Launcher 11 | . 2 . 9 Special 8 | . . 6 2 Kinetic 191 | 48 116 27 . Thermal 56 | . . 35 21 Explosive 11 | . 2 . 9 Electromagnetic . | . . . . Robot Hit Streak 10 | 10 10 7 3 Robot Miss Streak 7 | 2 5 2 7 Penetration Max . | . . . . Secondary Targets 1 | . . . 1 Max Gunslinging Chain 1 | . . . 1 Shots Hit Robots 146 | 35 60 38 13 Core Hits 67 | 11 27 16 13 Critical Kills . | . . . . Critical Parts Destroyed . | . . . . Critical Strikes 5 | . 3 2 . Burn 1 | . . 1 . Blast 4 | . 3 1 . Melee Attacks 2 | . . 2 . Impact . | . . . . Slashing . | . . . . Piercing . | . . . . Sneak Attacks . | . . . . Combat Hostiles . | . . . . Follow-up Attacks . | . . . . Damage Inflicted 2577 | 301 923 596 757 Guns 794 | 301 162 225 106 Cannons 953 | . 695 258 . Explosions 798 | . 58 113 627 Melee . | . . . . Ramming 8 | . 8 . . Kinetic 1416 | 301 857 258 . Thermal 778 | . . 338 440 Explosive 375 | . 58 . 317 Electromagnetic . | . . . . Impact . | . . . . Slashing . | . . . . Piercing . | . . . . Highest Corruption . | . . . . Average Corruption . | . . . . Corruption Purged . | . . . . Corruption Blocked . | . . . . Overload Shots . | . . . . Overflow Damage 86 | . . 27 59 Projectiles 8 | . . 8 . Explosions 78 | . . 19 59 Melee . | . . . . Knockbacks 11 | . 7 4 . Impact . | . . . . Kinetic 11 | . 7 4 . Secondary . | . . . . Self-Inflicted Damage 258 | . 4 92 162 Shots 8 | . . 2 6 Rammed 2 | . 1 . 1 Targets Rammed 2 | . 1 . 1 Kicked . | . . . . Crushed . | . . . . Highest Temperature 132 | . 18 132 12 Average Temperature 36 | . 10 47 5 Received Heat Transfer 480 | . 174 78 228 Siege Activations . | . . . . Martial Activations . | . . . . Shielding Activations . | . . . . Robots Disrupted . | . . . . Combat Hostiles . | . . . . Robots Corrupted . | . . . . Combat Hostiles . | . . . . Parts Fried . | . . . . Impact Corruptions . | . . . . Robots Melted . | . . . . Combat Hostiles . | . . . . Parts Melted . | . . . . Heat Transferred 1349 | . . 840 509 Parts Sabotaged . | . . . . Parts Stolen . | . . . . Parts Stripped . | . . . . Power Chain Reactions . | . . . . Alert | -11 -10 -10 -9 ------- Run | Yrd Mat Min Mat Maximum Alert Level 1 | . . 1 . Low Security (%) 96 | 100 100 93 100 Level 1 3 | . . 6 . Level 2 . | . . . . Level 3 . | . . . . Level 4 . | . . . . Level 5 . | . . . . High Security . | . . . . Max Security . | . . . . Peak Influence 229 | 10 88 229 163 Initial 49 | . . 26 49 Average 52 | 1 43 72 51 Influence Increases 1064 | 25 385 354 300 Destroy 0b10 Robot/C 560 | . 260 140 160 Destroy 0b10 Robot/NC 105 | 25 35 25 20 Destroy Leader 114 | . 52 30 32 Allied During Kill 2 | . . . 2 Successful Hack 12 | . 12 . . Disable Machine 195 | . 15 135 45 Destroy Structure 76 | . 11 24 41 Influence Decreases 871 | 25 317 295 234 Entered New Map 120 | . . 42 78 Time Decay 645 | 25 297 243 80 Lost Part 106 | . 20 10 76 Squads Dispatched 4 | . 3 . 1 Investigation . | . . . . Extermination . | . . . . Reinforcement 4 | . 3 . 1 Assault . | . . . . Garrison . | . . . . Intercept . | . . . . Searches Triggered . | . . . . Construction Impeded . | . . . . Haulers Reinforced . | . . . . Active Scanning Responses . | . . . . Cargo Convoy Interrupts . | . . . . Stealth | -11 -10 -10 -9 --------- Run | Yrd Mat Min Mat Distress Signals 6 | . 4 . 2 Communications Jammed . | . . . . Distress Signals . | . . . . Times Spotted 45 | . 25 7 13 Peak Tracking Total 7 | . 3 3 7 Tactical Retreats . | . . . . Traps | -11 -10 -10 -9 ------- Run | Yrd Mat Min Mat Traps Triggered 2 | . 1 . 1 Indirectly . | . . . . Trap Hack Attempts . | . . . . Triggered . | . . . . Disarmed . | . . . . Reprogrammed . | . . . . Reused . | . . . . Traps Extracted . | . . . . Installed . | . . . . Triggered . | . . . . Machines | -11 -10 -10 -9 ---------- Run | Yrd Mat Min Mat Machines Disabled 14 | . 2 9 3 Max in Single Turn 9 | . 1 9 2 Machines Repaired . | . . . . Machines Dismantled . | . . . . Machines Sabotaged . | . . . . Overloaded Fab Kills . | . . . . Hacking | -11 -10 -10 -9 --------- Run | Yrd Mat Min Mat Machines Accessed 3 | . 3 . . Terminals 2 | . 2 . . Fabricators . | . . . . Repair Stations . | . . . . Recycling Units 1 | . 1 . . Scanalyzers . | . . . . Garrison Access . | . . . . Total Hacks 15 | . 15 . . Successful 12 | . 12 . . Failed 3 | . 3 . . Catastrophic . | . . . . Database Lockouts . | . . . . Manual . | . . . . Terminals 8 | . 8 . . Fabricators . | . . . . Repair Stations . | . . . . Recycling Units 7 | . 7 . . Scanalyzers . | . . . . Garrison Access . | . . . . Terminal Hacks 5 | . 5 . . Record 2 | . 2 . . Prototype ID Bank 1 | . 1 . . Registered Components 1 | . 1 . . Zone Layout 1 | . 1 . . Fabricator Hacks . | . . . . Repair Station Hacks . | . . . . Recycling Unit Hacks 7 | . 7 . . Recycle Component 3 | . 3 . . Process 2 | . 2 . . Report Inventory 1 | . 1 . . Retrieve Matter 1 | . 1 . . Scanalyzer . | . . . . Garrison Access Hacks . | . . . . Unauthorized Hacks . | . . . . Terminals . | . . . . Fabricators . | . . . . Repair Stations . | . . . . Recycling Units . | . . . . Scanalyzers . | . . . . Garrison Access . | . . . . Data Cores Recovered . | . . . . Used . | . . . . Hacking Detections 2 | . 2 . . Full Trace Events 2 | . 2 . . Feedback Events . | . . . . Feedback Blocked . | . . . . Robot Schematics Acquired . | . . . . Robots Built . | . . . . Authchips . | . . . . Time . | . . . . Total Robot Build Rating . | . . . . Part Schematics Acquired . | . . . . Parts Built . | . . . . Authchips . | . . . . Time . | . . . . Total Part Build Rating . | . . . . Part Studies Acquired . | . . . . Parts Repaired . | . . . . Time . | . . . . Parts Recycled 3 | . 3 . . Recycled Matter 142 | . 142 . . Retrieved Matter 142 | . 142 . . Retrieved Components . | . . . . Parts Scanalyzed . | . . . . Part Schematics Acquired . | . . . . Parts Damaged . | . . . . Bothacking | -11 -10 -10 -9 ------------ Run | Yrd Mat Min Mat Used RIF Installer . | . . . . Robots Hacked 1 | . . 1 . Non-combat . | . . . . Combat 1 | . . 1 . Robot Hacks Applied 2 | . . 2 . parse_system 2 | . . 2 . Relay Couplers Released . | . . . . Fabnet Peak Effective % . | . . . . Robots Rewired . | . . . . Allies Hacked . | . . . . Hacks Repelled . | . . . . Allies | -11 -10 -10 -9 -------- Run | Yrd Mat Min Mat Total Allies 1 | . . 1 . Largest Group 1 | . . 1 1 Highest-Rated Group 31 | . . 31 31 Highest-Rated Ally 31 | . . 31 31 Total Orders . | . . . . Ally Attacks 4 | . . . 4 Total Damage 43 | . . . 43 Kills 2 | . . . 2 Allies Corrupted . | . . . . Allies Melted . | . . . . Intel | -11 -10 -10 -9 ------- Run | Yrd Mat Min Mat Active Infowar (turns) 482 | 146 336 . . Terrain 482 | 146 336 . . Robot Analysis Total . | . . . . Derelict Logs Recovered 1 | . . 1 . Drone Launches . | . . . . Drone Recoveries . | . . . . Exploration | -11 -10 -10 -9 ------------- Run | Yrd Mat Min Mat Turns Passed 2087 | 217 760 933 177 Spaces Moved 1204 | 137 402 577 88 Core 15 | 11 3 . 1 Treads 2 | . . . 2 Legs 193 | . 193 . . Wheels 988 | 126 206 571 85 Hover . | . . . . Flight 6 | . . 6 . Fastest Speed 50 | 50 100 110 110 Average Speed 130 | 98 133 137 121 Slowest Speed 1000 | 100 470 1000 700 Overloaded Moves . | . . . . Propulsion Burnouts . | . . . . Robots Hopped . | . . . . Potential Cave-ins . | . . . . Cave-ins Triggered . | . . . . Exploration Rate (%) 38 | 6 41 93 12 Regions Visited 3 Branch Regions 1 Pre-discovered Areas . | . . . . Known Exits Taken . | . . . . Unknown Exits Taken 3 | 1 1 1 . Scrap Searched . | . . . . Spaces Dug 6 | . . 6 . Terrain Destroyed 80 | . 10 28 42 Melee . | . . . . Projectile 6 | . . 6 . AOE 74 | . 10 22 42 Terrain Rammed . | . . . . Walls Destroyed . | . . . . Machines Disabled . | . . . . Actions | -11 -10 -10 -9 --------- Run | Yrd Mat Min Mat Total 1459 | 181 518 641 119 Wait 8 | 5 . 3 . Move 1201 | 136 401 576 88 Hop . | . . . . Pick Up 37 | 9 18 9 1 Fast Attach 2 | . 2 . . Attach 26 | 7 8 6 5 Detach 4 | . 3 1 . Swap 6 | . 4 1 1 Drop 12 | . 7 4 1 Fire 159 | 24 74 39 22 Melee 2 | . . 2 . Ram 2 | . 1 . 1 Kick . | . . . . Crush . | . . . . Escape Stasis . | . . . . Rewire . | . . . . Trap . | . . . . Miscellaneous . | . . . . Route ------- -11/Scrapyard -10/Materials -10/Mines (discovered 2 exits: [*Mat x2]) -9/Materials (discovered 2 exits: Mat / Min) History --------- Turn | Location | Event 49 | -11/Scrapyard | Discovered new exit (range 13) 218 | -11/Scrapyard | Entered Materials 318 | -10/Materials | Build established: Mutant 402 | -10/Materials | Discovered new exit (range 6) 978 | -10/Materials | Entered Mines 1043 | -10/Mines | Received a Rocket Launcher from a helpful Derelict 1071 | -10/Mines | Learned location of 2 exits from Materials 1103 | -10/Mines | Found a damaged Exp. Sensor Array with a note attached 1106 | -10/Mines | Found Prototype Device 1564 | -10/Mines | Core integrity fell below 50% 1657 | -10/Mines | Discovered new exit (range 12) 1714 | -10/Mines | Discovered new exit (range 16) 1773 | -10/Mines | Received a Mining Laser from a helpful Derelict 1911 | -10/Mines | Entered Materials 1911 | -9/Materials | Accompanied by 1 ally 1911 | -9/Materials | Evolved 2 slots: Propulsion x1, Utility x1 1912 | -9/Materials | Identified exit to Mines 1912 | -9/Materials | Identified exit to Materials 2072 | -9/Materials | Core integrity fell below 50% 2079 | -9/Materials | Core integrity fell below 20% 2088 | -9/Materials | Destroyed self with Rocket Launcher Last Messages --------------- 02059_ Med. Laser destroyed. 02063_ Particle Gun destroyed. 02063_ R-06 Scavenger collects Lgt. Ion Engine. 02063_ Med. Matter Pod destroyed. 02065_ M-13 Machinist repairs G-34 Mercenary Aluminum Leg. 02067_ R-06 Scavenger collects Flight Unit. 02075_ R-06 Scavenger destroyed. 02075_ M-13 Machinist destroyed. 02080_ K-01 Serf collects debris. 02080_ T-07 Excavator is excavating. 02080_ G-34 Mercenary destroyed. 02083_ K-01 Serf collects debris. 02083_ G-34 Mercenary destroyed. 02083_ K-01 Serf destroyed. 02084_ T-07 Excavator is excavating. 02085_ Atomic Centrifuge disabled. 02088_ T-07 Excavator is excavating. 02088_ Y-45 Defender destroyed. [Achievement: Resistances Are Futile] Map ----- +----------------------------------------------------+ | ?????????????????????????????????????????????????? | | ?????????????????????????????????????????????????? | | ?????????????????????????????????????????????????? | | ?????????????????????????????????????????????????? | | ?????????????????????????????????????????????????? | | ?????????????????????????????????????????????????? | | ?????????????????????????????????????????????????? | | ?????????????????????????????????????????????????? | | ?????????????????????????????????????????????????? | | ?????????????????????????????????????????????????? | | ?????????????????????????????????????????????????? | | ?????????????????????????????????????????????????? | | ?????????????????????????????????????????????????? | | ????????????????????###??????????????????????????? | | ???????????????????? u ?????????? #????????????? | | ???????????????????? ?? #????? ##??????????? | | ????????????????????"" #????= ??????????? | | ??????????????????# "" +??? % ?????????? | | ??????????????????# "T """ #??# ?????????? | | ??????????????????# "" """ #? ; * ????????? | | ??????????????????# "" "" ## =%! ????????? | | ??????????????????# # ????????? | | ???????????????????# ???????? | | ??????????????????## ! [ ???????? | | ??????????????????# *[ !%% | ??????? | | ??????????????????# @ ??????? | | ??????????????????## ??????? | | ????????????#####??#% ; ??????? | | ????????????# # # # ; ??????? | | ????????????# """ + # ## """ # ???????? | | ????????????# "T" # # ??? """ #?? ???????? | | ????????????# # # ??? """ #???? ##????????? | | ????????????# + # t ???? ?????????????????? | | ????????????# """ # # ???? ?????????????????? | | ????????????+ ""??# ####?????##?????????????????? | | ????????????# ????# #???????????????????????????? | | ???????????????????#+#########???????????????????? | | ???????????????????# ########????????????? | | ???????????????????# ## ########?????? | | ???????????????????# """ ## # #?????? | | ???????????????????#""""" ## # #?????? | | ???????????????????#""""" % ## = # """ #?????? | | ???????????????????#""""" ## # """ #?????? | | ???????????????????# """ ## # """ #?????? | | ???????????????????# ## #! #?????? | | ??????????????######### "######+######+####????? | | ?????????????+ #????? | | ????????????????####### #????? | | ??????????????????????# #????? | | ??????????????????????##################+####????? | +----------------------------------------------------+ Best States ------------- Heat Dissipation 42 Energy Generation 14 Energy Capacity 250 Matter Stores 400 Matter Capacity 400 Sight Range 16 Terrain Scan Range 16 Terrain Scan Density 10 Evasion (%) 55 Recoil Reduction 1 Item Schematics ----------------- None Robot Schematics ------------------ None Fabricated ------------ Nothing Repaired ---------- Nothing Studied --------- None Alien Tech Used ----------------- None Achievements -------------- DATA ERROR: Steam Global Achievement% For Emergencies Only Organ Harvest Resistances Are Futile There's More Where That Came From Challenges ------------ None Game ------ Seed FissionDecoyLegs Manual? 0 Play Time 00:30:08 Cumulative 5.0 hours Start 2026.02.04 @ 13:52:38 End 2026.02.04 @ 15:58:54 Sessions 3 Manual Loads 0 Difficulty Rogue Special Mode None Game No. 9 Rogue 9 Adventurer 0 Explorer 0 Win Type - Total 0 Types 0/0/0/0/0/0/0/0/0/0 Lore% 6 Gallery% 9 Achievement% 8 Wizard Run 0 Options --------- Layout 1 ASCII 0 Keyboard 0 Movement Mouse Keybinds 0 Fullscreen 1 Font 24/Smallcaps Map View 50x35 Zoom Use 0% Tactical HUD 1 Map Filters NONE Filters NONE Steam 1 RUN: f3b0b074-c4be-4b23-b847-13fbdca2c29d